Workbook

Sheet ACHAT
O1: =TODAY()-1 -> 2015-08-17
A5: BORDEREAU D'ACHAT N° | C5: 1 | H5: BORDEREAU D'ACHAT N° | J5: =C5 -> 1 | O5: =IF(IF(Plage=$O$1,INDIRECT(ADDRESS(ROW(Plage)+14,4)),0)<>0,MATCH(IF(Plage=$O$1,INDIRECT(ADDRESS(ROW(Plage)+14,4)),0),STATISTIQUE!$A$1:$A$20,0),0) -> 0
A6: Agence: | B6: Lmumba | D6: Pointe-Noire le | F6: 2015-08-17 | H6: Agence: | I6: Lmumba | K6: Pointe-Noire le | M6: =F6 -> 2015-08-17
A8: INFORMATIONS DU CLIENT | H8: INFORMATIONS DU CLIENT
A9: NOM (S) : | D9: NZAOU | H9: NOM (S) : | K9: =IF(D9="","",D9) -> NZAOU
A10: PRENOM (S): | D10: KELLY | H10: PRENOM (S): | K10: =IF(D10="","",D10) -> KELLY
A11: ADRESSE et TELEPHONE: | D11: 06 401 74 19 | H11: ADRESSE et TELEPHONE: | K11: 06 401 74 19
A12: N° PASSEPORT: | H12: N° PASSEPORT:
A13: Provenance des devises: | D13: FRANCE | H13: Provenance des devises: | K13: =IF(D13="","",D13) -> FRANCE
A14: Motif: | D14: TOURISME | H14: Motif: | K14: =IF(D14="","",D14) -> TOURISME
A15: Devise: | D15: EURO | H15: Devise: | K15: EURO
A16: TAUX 1 | B16: 650 | D16: TAUX 2 | H16: TAUX 1 | I16: =IF(B16="","",B16) -> 650 | K16: TAUX 2 | L16: =IF(E16="","",E16) -> 
A19: BILLETAGE | H19: BILLETAGE
A20: Coupures | B20: Quantité | C20: Valeur | D20: Coupures | E20: Quantité | F20: Valeur | H20: Coupures | I20: Quantité | J20: Valeur | K20: Coupures | L20: Quantité | M20: Valeur
A21: 10000 | C21: =B21*A21 -> 0 | D21: 100 | F21: =E21*D21 -> 0 | H21: 10000 | I21: =IF(B21="","",B21) ->  | J21: =IF(C21="","",C21) -> 0 | K21: 100 | L21: =IF(E21="","",E21) ->  | M21: =IF(F21="","",F21) -> 0
A22: 5000 | C22: =B22*A22 -> 0 | D22: 50 | F22: =E22*D22 -> 0 | H22: 5000 | I22: =IF(B22="","",B22) ->  | J22: =IF(C22="","",C22) -> 0 | K22: 50 | L22: =IF(E22="","",E22) ->  | M22: =IF(F22="","",F22) -> 0
A23: 2000 | C23: 0 | D23: 20 | E23: 1 | F23: 20 | H23: 2000 | J23: 0 | K23: 20 | L23: 1 | M23: 20
A24: 1000 | C24: 0 | D24: 10 | F24: 0 | H24: 1000 | J24: 0 | K24: 10 | M24: 0
A25: 500 | C25: 0 | D25: 5 | F25: 0 | H25: 500 | J25: 0 | K25: 5 | M25: 0
A26: 200 | C26: 0 | D26: 1 | F26: 0 | H26: 200 | J26: 0 | K26: 1 | M26: 0
A27: Valeur Totale | B27: =IF(D15="CFAO",(C21+C22+C23+C24+C25),IF(D15="DOLLARS",(F21+F22+F23+F24+F25+F26),IF(D15="EURO",(C25+C26+F21+F22+F23+F24+F25),IF(D15="LIVRE STERLING",(F22+F23+F24+F25),"")))) -> 20 | D27: Net à Payer | E27: =IF(D15="CFAO",B27,IF(D15="DOLLARS",(((F21+F22)*E16)+((F23+F24+F25+F26)*B16)),IF(D15="EURO",(((C25+C26+F21+F22)*E16)+((F23+F24+F25)*B16)),IF(D15="LIVRE STERLING",((F22*E16)+((F23+F24+F25)*B16)),"")))) -> 13000 | H27: Valeur Total | I27: =IF(B27="","",B27) -> 20 | K27: Net à Payer | L27: =IF(E27="","",E27) -> 13000
A29: Caissier | F29: Client | H29: Caissier | M29: Client
A34: .
A39: BORDEREAU D'ACHAT N° | C39: 2 | H39: BORDEREAU D'ACHAT N° | J39: =C39 -> 2
A40: Agence: | B40: Lmumba | D40: Pointe-Noire le | F40: 2015-08-17 | H40: Agence: | I40: Lmumba | K40: Pointe-Noire le | M40: =F40 -> 2015-08-17
A42: INFORMATIONS DU CLIENT | H42: INFORMATIONS DU CLIENT
A43: NOM (S) : | D43: LOUNGOUALA | H43: NOM (S) : | K43: =IF(D43="","",D43) -> LOUNGOUALA
A44: PRENOM (S): | D44: BERTIN | H44: PRENOM (S): | K44: =IF(D44="","",D44) -> BERTIN
A45: ADRESSE et TELEPHONE: | D45: 06 628 98 09 | H45: ADRESSE et TELEPHONE: | K45: 06 628 98 09
A46: N° PASSEPORT: | H46: N° PASSEPORT:
A47: Provenance des devises: | D47: FRANCE | H47: Provenance des devises: | K47: =IF(D47="","",D47) -> FRANCE
A48: Motif: | D48: Tourisme | H48: Motif: | K48: =IF(D48="","",D48) -> Tourisme
A49: Devise: | D49: EURO | H49: Devise: | K49: EURO
A50: TAUX 1 | D50: TAUX 2 | E50: 656 | H50: TAUX 1 | I50: =IF(B50="","",B50) ->  | K50: TAUX 2 | L50: =IF(E50="","",E50) -> 656
A53: BILLETAGE | H53: BILLETAGE
A54: Coupures | B54: Quantité | C54: Valeur | D54: Coupures | E54: Quantité | F54: Valeur | H54: Coupures | I54: Quantité | J54: Valeur | K54: Coupures | L54: Quantité | M54: Valeur
A55: 10000 | C55: =B55*A55 -> 0 | D55: 100 | F55: =E55*D55 -> 0 | H55: 10000 | I55: =IF(B55="","",B55) ->  | J55: =IF(C55="","",C55) -> 0 | K55: 100 | L55: =IF(E55="","",E55) ->  | M55: =IF(F55="","",F55) -> 0
A56: 5000 | C56: =B56*A56 -> 0 | D56: 50 | E56: 2 | F56: =E56*D56 -> 100 | H56: 5000 | I56: =IF(B56="","",B56) ->  | J56: =IF(C56="","",C56) -> 0 | K56: 50 | L56: =IF(E56="","",E56) -> 2 | M56: =IF(F56="","",F56) -> 100
A57: 2000 | C57: 0 | D57: 20 | F57: 0 | H57: 2000 | J57: 0 | K57: 20 | M57: 0
A58: 1000 | C58: 0 | D58: 10 | F58: 0 | H58: 1000 | J58: 0 | K58: 10 | M58: 0
A59: 500 | C59: 0 | D59: 5 | F59: 0 | H59: 500 | J59: 0 | K59: 5 | M59: 0
A60: 200 | C60: 0 | D60: 1 | F60: 0 | H60: 200 | J60: 0 | K60: 1 | M60: 0
A61: Valeur Totale | B61: =IF(D49="CFAO",(C55+C56+C57+C58+C59),IF(D49="DOLLARS",(F55+F56+F57+F58+F59+F60),IF(D49="EURO",(C59+C60+F55+F56+F57+F58+F59),IF(D49="LIVRE STERLING",(F56+F57+F58+F59),"")))) -> 100 | D61: Net à Payer | E61: =IF(D49="CFAO",B61,IF(D49="DOLLARS",(((F55+F56)*E50)+((F57+F58+F59+F60)*B50)),IF(D49="EURO",(((C59+C60+F55+F56)*E50)+((F57+F58+F59)*B50)),IF(D49="LIVRE STERLING",((F56*E50)+((F57+F58+F59)*B50)),"")))) -> 65600 | H61: Valeur Totale | I61: =IF(B61="","",B61) -> 100 | K61: Net à Payer | L61: =IF(E61="","",E61) -> 65600
A63: Caissier | F63: Client | H63: Caissier | M63: Client
A68: .
A73: BORDEREAU D'ACHAT N° | C73: 3 | H73: BORDEREAU D'ACHAT N° | J73: =C73 -> 3
A74: Agence: | B74: Lmumba | D74: Pointe-Noire le | F74: 2015-08-17 | H74: Agence: | I74: Lmumba | K74: Pointe-Noire le | M74: =F74 -> 2015-08-17
A76: INFORMATIONS DU CLIENT | H76: INFORMATIONS DU CLIENT
A77: NOM (S) : | D77: DIOP | H77: NOM (S) : | K77: =IF(D77="","",D77) -> DIOP
A78: PRENOM (S): | D78: KALIFA | H78: PRENOM (S): | K78: =IF(D78="","",D78) -> KALIFA
A79: ADRESSE et TELEPHONE: | H79: ADRESSE et TELEPHONE:
A80: N° PASSEPORT: | H80: N° PASSEPORT:
A81: Provenance des devises: | D81: ANGLETERRE | H81: Provenance des devises: | K81: =IF(D81="","",D81) -> ANGLETERRE
A82: Motif: | D82: Tourisme | H82: Motif: | K82: =IF(D82="","",D82) -> Tourisme
A83: Devise: | D83: EURO | H83: Devise: | K83: EURO
A84: TAUX 1 | D84: TAUX 2 | E84: 656 | H84: TAUX 1 | I84: =IF(B84="","",B84) ->  | K84: TAUX 2 | L84: =IF(E84="","",E84) -> 656
A87: BILLETAGE | H87: BILLETAGE
A88: Coupures | B88: Quantité | C88: Valeur | D88: Coupures | E88: Quantité | F88: Valeur | H88: Coupures | I88: Quantité | J88: Valeur | K88: Coupures | L88: Quantité | M88: Valeur
A89: 10000 | C89: =B89*A89 -> 0 | D89: 100 | E89: 2 | F89: =E89*D89 -> 200 | H89: 10000 | I89: =IF(B89="","",B89) ->  | J89: =IF(C89="","",C89) -> 0 | K89: 100 | L89: =IF(E89="","",E89) -> 2 | M89: =IF(F89="","",F89) -> 200
A90: 5000 | C90: =B90*A90 -> 0 | D90: 50 | F90: =E90*D90 -> 0 | H90: 5000 | I90: =IF(B90="","",B90) ->  | J90: =IF(C90="","",C90) -> 0 | K90: 50 | L90: =IF(E90="","",E90) ->  | M90: =IF(F90="","",F90) -> 0
A91: 2000 | C91: 0 | D91: 20 | F91: 0 | H91: 2000 | J91: 0 | K91: 20 | M91: 0
A92: 1000 | C92: 0 | D92: 10 | F92: 0 | H92: 1000 | J92: 0 | K92: 10 | M92: 0
A93: 500 | C93: 0 | D93: 5 | F93: 0 | H93: 500 | J93: 0 | K93: 5 | M93: 0
A94: 200 | C94: 0 | D94: 1 | F94: 0 | H94: 200 | J94: 0 | K94: 1 | M94: 0
A95: Valeur Totale | B95: =IF(D83="CFAO",(C89+C90+C91+C92+C93),IF(D83="DOLLARS",(F89+F90+F91+F92+F93+F94),IF(D83="EURO",(C93+C94+F89+F90+F91+F92+F93),IF(D83="LIVRE STERLING",(F90+F91+F92+F93),"")))) -> 200 | D95: Net à Payer | E95: =IF(D83="CFAO",B95,IF(D83="DOLLARS",(((F89+F90)*E84)+((F91+F92+F93+F94)*B84)),IF(D83="EURO",(((C93+C94+F89+F90)*E84)+((F91+F92+F93)*B84)),IF(D83="LIVRE STERLING",((F90*E84)+((F91+F92+F93)*B84)),"")))) -> 131200 | H95: Valeur Totale | I95: =IF(B95="","",B95) -> 200 | K95: Net à Payer | L95: =IF(E95="","",E95) -> 131200
A97: Caissier | F97: Client | H97: Caissier | M97: Client
A102: .
A107: BORDEREAU D'ACHAT N° | C107: 4 | H107: BORDEREAU D'ACHAT N° | J107: =C107 -> 4
A108: Agence: | B108: Lmumba | D108: Pointe-Noire le | F108: 2015-08-17 | H108: Agence: | I108: Lmumba | K108: Pointe-Noire le | M108: =F108 -> 2015-08-17
A110: INFORMATIONS DU CLIENT | H110: INFORMATIONS DU CLIENT
A111: NOM (S) : | D111: IBOUANGA DOUKEBA | H111: NOM (S) : | K111: =IF(D111="","",D111) -> IBOUANGA DOUKEBA
A112: PRENOM (S): | D112: CHRISTIAN | H112: PRENOM (S): | K112: =IF(D112="","",D112) -> CHRISTIAN
A113: ADRESSE et TELEPHONE: | D113: 06 970 33 43 | H113: ADRESSE et TELEPHONE: | K113: 06 970 33 43
A114: N° PASSEPORT: | H114: N° PASSEPORT:
A115: Provenance des devises: | D115: FRANCE | H115: Provenance des devises: | K115: =IF(D115="","",D115) -> FRANCE
A116: Motif: | D116: Tourisme | H116: Motif: | K116: =IF(D116="","",D116) -> Tourisme
A117: Devise: | D117: EURO | H117: Devise: | K117: EURO
A118: TAUX 1 | B118: 650 | D118: TAUX 2 | H118: TAUX 1 | I118: =IF(B118="","",B118) -> 650 | K118: TAUX 2 | L118: =IF(E118="","",E118) -> 
A121: BILLETAGE | H121: BILLETAGE
A122: Coupures | B122: Quantité | C122: Valeur | D122: Coupures | E122: Quantité | F122: Valeur | H122: Coupures | I122: Quantité | J122: Valeur | K122: Coupures | L122: Quantité | M122: Valeur
A123: 10000 | C123: =B123*A123 -> 0 | D123: 100 | F123: =E123*D123 -> 0 | H123: 10000 | I123: =IF(B123="","",B123) ->  | J123: =IF(C123="","",C123) -> 0 | K123: 100 | L123: =IF(E123="","",E123) ->  | M123: =IF(F123="","",F123) -> 0
A124: 5000 | C124: =B124*A124 -> 0 | D124: 50 | F124: =E124*D124 -> 0 | H124: 5000 | I124: =IF(B124="","",B124) ->  | J124: =IF(C124="","",C124) -> 0 | K124: 50 | L124: =IF(E124="","",E124) ->  | M124: =IF(F124="","",F124) -> 0
A125: 2000 | C125: 0 | D125: 20 | E125: 1 | F125: 20 | H125: 2000 | J125: 0 | K125: 20 | L125: 1 | M125: 20
A126: 1000 | C126: 0 | D126: 10 | F126: 0 | H126: 1000 | J126: 0 | K126: 10 | M126: 0
A127: 500 | C127: 0 | D127: 5 | F127: 0 | H127: 500 | J127: 0 | K127: 5 | M127: 0
A128: 200 | C128: 0 | D128: 1 | F128: 0 | H128: 200 | J128: 0 | K128: 1 | M128: 0
A129: Valeur Totale | B129: =IF(D117="CFAO",(C123+C124+C125+C126+C127),IF(D117="DOLLARS",(F123+F124+F125+F126+F127+F128),IF(D117="EURO",(C127+C128+F123+F124+F125+F126+F127),IF(D117="LIVRE STERLING",(F124+F125+F126+F127),"")))) -> 20 | D129: Net à Payer | E129: =IF(D117="CFAO",B129,IF(D117="DOLLARS",(((F123+F124)*E118)+((F125+F126+F127+F128)*B118)),IF(D117="EURO",(((C127+C128+F123+F124)*E118)+((F125+F126+F127)*B118)),IF(D117="LIVRE STERLING",((F124*E118)+((F125+F126+F127)*B118)),"")))) -> 13000 | H129: Valeur Totale | I129: =IF(B129="","",B129) -> 20 | K129: Net à Payer | L129: =IF(E129="","",E129) -> 13000
A131: Caissier | F131: Client | H131: Caissier | M131: Client
A136: .
A141: BORDEREAU D'ACHAT N° | C141: 5 | H141: BORDEREAU D'ACHAT N° | J141: =C141 -> 5
A142: Agence: | B142: Lmumba | D142: Pointe-Noire le | F142: 2015-08-17 | H142: Agence: | I142: Lmumba | K142: Pointe-Noire le | M142: =F142 -> 2015-08-17
A144: INFORMATIONS DU CLIENT | H144: INFORMATIONS DU CLIENT
A145: NOM (S) : | D145: BALENDA | H145: NOM (S) : | K145: =IF(D145="","",D145) -> BALENDA
A146: PRENOM (S): | D146: JEAN PAUL G | H146: PRENOM (S): | K146: =IF(D146="","",D146) -> JEAN PAUL G
A147: ADRESSE et TELEPHONE: | D147: TCHIMBAMBA / 05 567 67 04 | H147: ADRESSE et TELEPHONE: | K147: TCHIMBAMBA / 05 567 67 04
A148: N° PASSEPORT: | D148: 14DL31245 | H148: N° PASSEPORT: | K148: 14DL31245
A149: Provenance des devises: | D149: FRANCE | H149: Provenance des devises: | K149: =IF(D149="","",D149) -> FRANCE
A150: Motif: | D150: Etudes | H150: Motif: | K150: =IF(D150="","",D150) -> Etudes
A151: Devise: | D151: EURO | H151: Devise: | K151: EURO
A152: TAUX 1 | D152: TAUX 2 | E152: 656 | H152: TAUX 1 | I152: =IF(B152="","",B152) ->  | K152: TAUX 2 | L152: =IF(E152="","",E152) -> 656
A155: BILLETAGE | H155: BILLETAGE
A156: Coupures | B156: Quantité | C156: Valeur | D156: Coupures | E156: Quantité | F156: Valeur | H156: Coupures | I156: Quantité | J156: Valeur | K156: Coupures | L156: Quantité | M156: Valeur
A157: 10000 | C157: =B157*A157 -> 0 | D157: 100 | E157: 2 | F157: =E157*D157 -> 200 | H157: 10000 | I157: =IF(B157="","",B157) ->  | J157: =IF(C157="","",C157) -> 0 | K157: 100 | L157: =IF(E157="","",E157) -> 2 | M157: =IF(F157="","",F157) -> 200
A158: 5000 | C158: =B158*A158 -> 0 | D158: 50 | F158: =E158*D158 -> 0 | H158: 5000 | I158: =IF(B158="","",B158) ->  | J158: =IF(C158="","",C158) -> 0 | K158: 50 | L158: =IF(E158="","",E158) ->  | M158: =IF(F158="","",F158) -> 0
A159: 2000 | C159: 0 | D159: 20 | F159: 0 | H159: 2000 | J159: 0 | K159: 20 | M159: 0
A160: 1000 | C160: 0 | D160: 10 | F160: 0 | H160: 1000 | J160: 0 | K160: 10 | M160: 0
A161: 500 | B161: 1 | C161: 500 | D161: 5 | F161: 0 | H161: 500 | I161: 1 | J161: 500 | K161: 5 | M161: 0
A162: 200 | B162: 2 | C162: 400 | D162: 1 | F162: 0 | H162: 200 | I162: 2 | J162: 400 | K162: 1 | M162: 0
A163: Valeur Totale | B163: =IF(D151="CFAO",(C157+C158+C159+C160+C161),IF(D151="DOLLARS",(F157+F158+F159+F160+F161+F162),IF(D151="EURO",(C161+C162+F157+F158+F159+F160+F161),IF(D151="LIVRE STERLING",(F158+F159+F160+F161),"")))) -> 1100 | D163: Net à Payer | E163: =IF(D151="CFAO",B163,IF(D151="DOLLARS",(((F157+F158)*E152)+((F159+F160+F161+F162)*B152)),IF(D151="EURO",(((C161+C162+F157+F158)*E152)+((F159+F160+F161)*B152)),IF(D151="LIVRE STERLING",((F158*E152)+((F159+F160+F161)*B152)),"")))) -> 721600 | H163: Valeur Totale | I163: =IF(B163="","",B163) -> 1100 | K163: Net à Payer | L163: =IF(E163="","",E163) -> 721600
A165: Caissier | F165: Client | H165: Caissier | M165: Client
A170: .
A175: BORDEREAU D'ACHAT N° | C175: 6 | H175: BORDEREAU D'ACHAT N° | J175: =C175 -> 6
A176: Agence: | B176: Lmumba | D176: Pointe-Noire le | F176: 2015-08-17 | H176: Agence: | I176: Lmumba | K176: Pointe-Noire le | M176: =F176 -> 2015-08-17
A178: INFORMATIONS DU CLIENT | H178: INFORMATIONS DU CLIENT
A179: NOM (S) : | D179: LUDOVIC | H179: NOM (S) : | K179: =IF(D179="","",D179) -> LUDOVIC
A180: PRENOM (S): | D180: MALEKA | H180: PRENOM (S): | K180: =IF(D180="","",D180) -> MALEKA
A181: ADRESSE et TELEPHONE: | D181: 05 302 06 73 | H181: ADRESSE et TELEPHONE: | K181: 05 302 06 73
A182: N° PASSEPORT: | H182: N° PASSEPORT:
A183: Provenance des devises: | D183: FRANCE | H183: Provenance des devises: | K183: =IF(D183="","",D183) -> FRANCE
A184: Motif: | D184: Tourisme | H184: Motif: | K184: =IF(D184="","",D184) -> Tourisme
A185: Devise: | D185: EURO | H185: Devise: | K185: EURO
A186: TAUX 1 | B186: 650 | D186: TAUX 2 | H186: TAUX 1 | I186: =IF(B186="","",B186) -> 650 | K186: TAUX 2 | L186: =IF(E186="","",E186) -> 
A189: BILLETAGE | H189: BILLETAGE
A190: Coupures | B190: Quantité | C190: Valeur | D190: Coupures | E190: Quantité | F190: Valeur | H190: Coupures | I190: Quantité | J190: Valeur | K190: Coupures | L190: Quantité | M190: Valeur
A191: 10000 | C191: =B191*A191 -> 0 | D191: 100 | F191: =E191*D191 -> 0 | H191: 10000 | I191: =IF(B191="","",B191) ->  | J191: =IF(C191="","",C191) -> 0 | K191: 100 | L191: =IF(E191="","",E191) ->  | M191: =IF(F191="","",F191) -> 0
A192: 5000 | C192: =B192*A192 -> 0 | D192: 50 | F192: =E192*D192 -> 0 | H192: 5000 | I192: =IF(B192="","",B192) ->  | J192: =IF(C192="","",C192) -> 0 | K192: 50 | L192: =IF(E192="","",E192) ->  | M192: =IF(F192="","",F192) -> 0
A193: 2000 | C193: 0 | D193: 20 | F193: 0 | H193: 2000 | J193: 0 | K193: 20 | M193: 0
A194: 1000 | C194: 0 | D194: 10 | E194: 1 | F194: 10 | H194: 1000 | J194: 0 | K194: 10 | L194: 1 | M194: 10
A195: 500 | C195: 0 | D195: 5 | F195: 0 | H195: 500 | J195: 0 | K195: 5 | M195: 0
A196: 200 | C196: 0 | D196: 1 | F196: 0 | H196: 200 | J196: 0 | K196: 1 | M196: 0
A197: Valeur Totale | B197: =IF(D185="CFAO",(C191+C192+C193+C194+C195),IF(D185="DOLLARS",(F191+F192+F193+F194+F195+F196),IF(D185="EURO",(C195+C196+F191+F192+F193+F194+F195),IF(D185="LIVRE STERLING",(F192+F193+F194+F195),"")))) -> 10 | D197: Net à Payer | E197: =IF(D185="CFAO",B197,IF(D185="DOLLARS",(((F191+F192)*E186)+((F193+F194+F195+F196)*B186)),IF(D185="EURO",(((C195+C196+F191+F192)*E186)+((F193+F194+F195)*B186)),IF(D185="LIVRE STERLING",((F192*E186)+((F193+F194+F195)*B186)),"")))) -> 6500 | H197: Valeur Totale | I197: =IF(B197="","",B197) -> 10 | K197: Net à Payer | L197: =IF(E197="","",E197) -> 6500
A199: Caissier | F199: Client | H199: Caissier | M199: Client
A204: .
A209: BORDEREAU D'ACHAT N° | C209: 7 | H209: BORDEREAU D'ACHAT N° | J209: =C209 -> 7
A210: Agence: | B210: Lmumba | D210: Pointe-Noire le | F210: 2015-08-17 | H210: Agence: | I210: Lmumba | K210: Pointe-Noire le | M210: =F210 -> 2015-08-17
A212: INFORMATIONS DU CLIENT | H212: INFORMATIONS DU CLIENT
A213: NOM (S) : | D213: MBOUNGOU | H213: NOM (S) : | K213: =IF(D213="","",D213) -> MBOUNGOU
A214: PRENOM (S): | D214: MAKANGA | H214: PRENOM (S): | K214: =IF(D214="","",D214) -> MAKANGA
A215: ADRESSE et TELEPHONE: | D215: 06 441 32 00 | H215: ADRESSE et TELEPHONE: | K215: 06 441 32 00
A216: N° PASSEPORT: | H216: N° PASSEPORT:
A217: Provenance des devises: | D217: FRANCE | H217: Provenance des devises: | K217: =IF(D217="","",D217) -> FRANCE
A218: Motif: | D218: Tourisme | H218: Motif: | K218: =IF(D218="","",D218) -> Tourisme
A219: Devise: | D219: EURO | H219: Devise: | K219: EURO
A220: TAUX 1 | B220: 650 | D220: TAUX 2 | H220: TAUX 1 | I220: =IF(B220="","",B220) -> 650 | K220: TAUX 2 | L220: =IF(E220="","",E220) -> 
A223: BILLETAGE | H223: BILLETAGE
A224: Coupures | B224: Quantité | C224: Valeur | D224: Coupures | E224: Quantité | F224: Valeur | H224: Coupures | I224: Quantité | J224: Valeur | K224: Coupures | L224: Quantité | M224: Valeur
A225: 10000 | C225: =B225*A225 -> 0 | D225: 100 | F225: =E225*D225 -> 0 | H225: 10000 | I225: =IF(B225="","",B225) ->  | J225: =IF(C225="","",C225) -> 0 | K225: 100 | L225: =IF(E225="","",E225) ->  | M225: =IF(F225="","",F225) -> 0
A226: 5000 | C226: =B226*A226 -> 0 | D226: 50 | F226: =E226*D226 -> 0 | H226: 5000 | I226: =IF(B226="","",B226) ->  | J226: =IF(C226="","",C226) -> 0 | K226: 50 | L226: =IF(E226="","",E226) ->  | M226: =IF(F226="","",F226) -> 0
A227: 2000 | C227: 0 | D227: 20 | E227: 1 | F227: 20 | H227: 2000 | J227: 0 | K227: 20 | L227: 1 | M227: 20
A228: 1000 | C228: 0 | D228: 10 | F228: 0 | H228: 1000 | J228: 0 | K228: 10 | M228: 0
A229: 500 | C229: 0 | D229: 5 | F229: 0 | H229: 500 | J229: 0 | K229: 5 | M229: 0
A230: 200 | C230: 0 | D230: 1 | F230: 0 | H230: 200 | J230: 0 | K230: 1 | M230: 0
A231: Valeur Totale | B231: =IF(D219="CFAO",(C225+C226+C227+C228+C229),IF(D219="DOLLARS",(F225+F226+F227+F228+F229+F230),IF(D219="EURO",(C229+C230+F225+F226+F227+F228+F229),IF(D219="LIVRE STERLING",(F226+F227+F228+F229),"")))) -> 20 | D231: Net à Payer | E231: =IF(D219="CFAO",B231,IF(D219="DOLLARS",(((F225+F226)*E220)+((F227+F228+F229+F230)*B220)),IF(D219="EURO",(((C229+C230+F225+F226)*E220)+((F227+F228+F229)*B220)),IF(D219="LIVRE STERLING",((F226*E220)+((F227+F228+F229)*B220)),"")))) -> 13000 | H231: Valeur Totale | I231: =IF(B231="","",B231) -> 20 | K231: Net à Payer | L231: =IF(E231="","",E231) -> 13000
A233: Caissier | F233: Client | H233: Caissier | M233: Client
A238: .
A243: BORDEREAU D'ACHAT N° | C243: 8 | H243: BORDEREAU D'ACHAT N° | J243: =C243 -> 8
A244: Agence: | B244: Lmumba | D244: Pointe-Noire le | F244: 2015-08-17 | H244: Agence: | I244: Lmumba | K244: Pointe-Noire le | M244: =F244 -> 2015-08-17
A246: INFORMATIONS DU CLIENT | H246: INFORMATIONS DU CLIENT
A247: NOM (S) : | D247: ZAKETE | H247: NOM (S) : | K247: =IF(D247="","",D247) -> ZAKETE
A248: PRENOM (S): | D248: VICTOIRE | H248: PRENOM (S): | K248: =IF(D248="","",D248) -> VICTOIRE
A249: ADRESSE et TELEPHONE: | D249: 06 996 86 25 | H249: ADRESSE et TELEPHONE: | K249: 06 996 86 25
A250: N° PASSEPORT: | H250: N° PASSEPORT:
A251: Provenance des devises: | D251: FRANCE | H251: Provenance des devises: | K251: =IF(D251="","",D251) -> FRANCE
A252: Motif: | D252: Tourisme | H252: Motif: | K252: =IF(D252="","",D252) -> Tourisme
A253: Devise: | D253: EURO | H253: Devise: | K253: EURO
A254: TAUX 1 | D254: TAUX 2 | E254: 656 | H254: TAUX 1 | I254: =IF(B254="","",B254) ->  | K254: TAUX 2 | L254: =IF(E254="","",E254) -> 656
A257: BILLETAGE | H257: BILLETAGE
A258: Coupures | B258: Quantité | C258: Valeur | D258: Coupures | E258: Quantité | F258: Valeur | H258: Coupures | I258: Quantité | J258: Valeur | K258: Coupures | L258: Quantité | M258: Valeur
A259: 10000 | C259: =B259*A259 -> 0 | D259: 100 | E259: 1 | F259: =E259*D259 -> 100 | H259: 10000 | I259: =IF(B259="","",B259) ->  | J259: =IF(C259="","",C259) -> 0 | K259: 100 | L259: =IF(E259="","",E259) -> 1 | M259: =IF(F259="","",F259) -> 100
A260: 5000 | C260: =B260*A260 -> 0 | D260: 50 | E260: 1 | F260: =E260*D260 -> 50 | H260: 5000 | I260: =IF(B260="","",B260) ->  | J260: =IF(C260="","",C260) -> 0 | K260: 50 | L260: =IF(E260="","",E260) -> 1 | M260: =IF(F260="","",F260) -> 50
A261: 2000 | C261: 0 | D261: 20 | F261: 0 | H261: 2000 | J261: 0 | K261: 20 | M261: 0
A262: 1000 | C262: 0 | D262: 10 | F262: 0 | H262: 1000 | J262: 0 | K262: 10 | M262: 0
A263: 500 | C263: 0 | D263: 5 | F263: 0 | H263: 500 | J263: 0 | K263: 5 | M263: 0
A264: 200 | C264: 0 | D264: 1 | F264: 0 | H264: 200 | J264: 0 | K264: 1 | M264: 0
A265: Valeur Totale | B265: =IF(D253="CFAO",(C259+C260+C261+C262+C263),IF(D253="DOLLARS",(F259+F260+F261+F262+F263+F264),IF(D253="EURO",(C263+C264+F259+F260+F261+F262+F263),IF(D253="LIVRE STERLING",(F260+F261+F262+F263),"")))) -> 150 | D265: Net à Payer | E265: =IF(D253="CFAO",B265,IF(D253="DOLLARS",(((F259+F260)*E254)+((F261+F262+F263+F264)*B254)),IF(D253="EURO",(((C263+C264+F259+F260)*E254)+((F261+F262+F263)*B254)),IF(D253="LIVRE STERLING",((F260*E254)+((F261+F262+F263)*B254)),"")))) -> 98400 | H265: Valeur Totale | I265: =IF(B265="","",B265) -> 150 | K265: Net à Payer | L265: =IF(E265="","",E265) -> 98400
A267: Caissier | F267: Client | H267: Caissier | M267: Client
A272: .
A277: BORDEREAU D'ACHAT N° | C277: 9 | H277: BORDEREAU D'ACHAT N° | J277: =C277 -> 9
A278: Agence: | B278: Lmumba | D278: Pointe-Noire le | F278: 2015-08-17 | H278: Agence: | I278: Lmumba | K278: Pointe-Noire le | M278: =F278 -> 2015-08-17
A280: INFORMATIONS DU CLIENT | H280: INFORMATIONS DU CLIENT
A281: NOM (S) : | D281: IBOUA | H281: NOM (S) : | K281: =IF(D281="","",D281) -> IBOUA
A282: PRENOM (S): | D282: PAMELA | H282: PRENOM (S): | K282: =IF(D282="","",D282) -> PAMELA
A283: ADRESSE et TELEPHONE: | D283: 06 660 09 29 | H283: ADRESSE et TELEPHONE: | K283: 06 660 09 29
A284: N° PASSEPORT: | H284: N° PASSEPORT:
A285: Provenance des devises: | D285: FRANCE | H285: Provenance des devises: | K285: =IF(D285="","",D285) -> FRANCE
A286: Motif: | D286: Tourisme | H286: Motif: | K286: =IF(D286="","",D286) -> Tourisme
A287: Devise: | D287: EURO | H287: Devise: | K287: EURO
A288: TAUX 1 | D288: TAUX 2 | E288: 656 | H288: TAUX 1 | I288: =IF(B288="","",B288) ->  | K288: TAUX 2 | L288: =IF(E288="","",E288) -> 656
A291: BILLETAGE | H291: BILLETAGE
A292: Coupures | B292: Quantité | C292: Valeur | D292: Coupures | E292: Quantité | F292: Valeur | H292: Coupures | I292: Quantité | J292: Valeur | K292: Coupures | L292: Quantité | M292: Valeur
A293: 10000 | C293: =B293*A293 -> 0 | D293: 100 | F293: =E293*D293 -> 0 | H293: 10000 | I293: =IF(B293="","",B293) ->  | J293: =IF(C293="","",C293) -> 0 | K293: 100 | L293: =IF(E293="","",E293) ->  | M293: =IF(F293="","",F293) -> 0
A294: 5000 | C294: =B294*A294 -> 0 | D294: 50 | E294: 2 | F294: =E294*D294 -> 100 | H294: 5000 | I294: =IF(B294="","",B294) ->  | J294: =IF(C294="","",C294) -> 0 | K294: 50 | L294: =IF(E294="","",E294) -> 2 | M294: =IF(F294="","",F294) -> 100
A295: 2000 | C295: 0 | D295: 20 | F295: 0 | H295: 2000 | J295: 0 | K295: 20 | M295: 0
A296: 1000 | C296: 0 | D296: 10 | F296: 0 | H296: 1000 | J296: 0 | K296: 10 | M296: 0
A297: 500 | C297: 0 | D297: 5 | F297: 0 | H297: 500 | J297: 0 | K297: 5 | M297: 0
A298: 200 | C298: 0 | D298: 1 | F298: 0 | H298: 200 | J298: 0 | K298: 1 | M298: 0
A299: Valeur Totale | B299: =IF(D287="CFAO",(C293+C294+C295+C296+C297),IF(D287="DOLLARS",(F293+F294+F295+F296+F297+F298),IF(D287="EURO",(C297+C298+F293+F294+F295+F296+F297),IF(D287="LIVRE STERLING",(F294+F295+F296+F297),"")))) -> 100 | D299: Net à Payer | E299: =IF(D287="CFAO",B299,IF(D287="DOLLARS",(((F293+F294)*E288)+((F295+F296+F297+F298)*B288)),IF(D287="EURO",(((C297+C298+F293+F294)*E288)+((F295+F296+F297)*B288)),IF(D287="LIVRE STERLING",((F294*E288)+((F295+F296+F297)*B288)),"")))) -> 65600 | H299: Valeur Totale | I299: =IF(B299="","",B299) -> 100 | K299: Net à Payer | L299: =IF(E299="","",E299) -> 65600
A301: Caissier | F301: Client | H301: Caissier | M301: Client
A306: .
A311: BORDEREAU D'ACHAT N° | C311: 10 | H311: BORDEREAU D'ACHAT N° | J311: =C311 -> 10
... 175 more rows

Sheet VENTE
A5: BORDEREAU DE VENTE N° | C5: 1 | H5: BORDEREAU DE VENTE N° | J5: =C5 -> 1
A6: Agence: | B6: Lmumba | D6: Pointe-Noire le | F6: 2015-08-17 | H6: Agence: | I6: Lmumba | K6: Pointe-Noire le | M6: =F6 -> 2015-08-17
A8: INFORMATIONS DU CLIENT | H8: INFORMATIONS DU CLIENT
A9: NOM (S) : | D9: CAMPISI | H9: NOM (S) : | K9: =IF(D9="","",D9) -> CAMPISI
A10: PRENOM (S): | D10: SANTOR ROSARIO | H10: PRENOM (S): | K10: =IF(D10="","",D10) -> SANTOR ROSARIO
A11: ADRESSE et TELEPHONE: | D11: 05 652 60 86 | H11: ADRESSE et TELEPHONE: | K11: 05 652 60 86
A12: N° PASSEPORT: | D12: YA2328140 | H12: N° PASSEPORT: | K12: YA2328140
A13: Destination des devises: | D13: ITALIE | H13: Destination des devises: | K13: =IF(D13="","",D13) -> ITALIE
A14: Motif: | D14: Tourisme | H14: Motif: | K14: =IF(D14="","",D14) -> Tourisme
A15: Devise: | D15: DOLLARS | H15: Devise: | K15: DOLLARS
A16: TAUX Moyen de VENTE | D16: 640 | H16: TAUX Moyen de VENTE | K16: =IF(D16="","",D16) -> 640
A19: BILLETAGE | H19: BILLETAGE
A20: Coupures | B20: Quantité | C20: Valeur | D20: Coupures | E20: Quantité | F20: Valeur | H20: Coupures | I20: Quantité | J20: Valeur | K20: Coupures | L20: Quantité | M20: Valeur
A21: 10000 | C21: =B21*A21 -> 0 | D21: 100 | E21: 5 | F21: =E21*D21 -> 500 | H21: 10000 | I21: =IF(B21="","",B21) ->  | J21: =IF(C21="","",C21) -> 0 | K21: 100 | L21: =IF(E21="","",E21) -> 5 | M21: =IF(F21="","",F21) -> 500
A22: 5000 | C22: =B22*A22 -> 0 | D22: 50 | F22: =E22*D22 -> 0 | H22: 5000 | I22: =IF(B22="","",B22) ->  | J22: 0 | K22: 50 | L22: =IF(E22="","",E22) ->  | M22: 0
A23: 2000 | C23: 0 | D23: 20 | F23: 0 | H23: 2000 | J23: 0 | K23: 20 | M23: 0
A24: 1000 | C24: 0 | D24: 10 | F24: 0 | H24: 1000 | J24: 0 | K24: 10 | M24: 0
A25: 500 | C25: 0 | D25: 5 | E25: 1 | F25: 5 | H25: 500 | J25: 0 | K25: 5 | L25: 1 | M25: 5
A26: 200 | C26: 0 | D26: 1 | F26: 0 | H26: 200 | J26: 0 | K26: 1 | M26: 0
A27: Valeur Totale | B27: =IF(D15="CFAO",(C21+C22+C23+C24+C25),IF(D15="DOLLARS",(F21+F22+F23+F24+F25+F26),IF(D15="EURO",(C25+C26+F21+F22+F23+F24+F25),IF(D15="LIVRE STERLING",(F22+F23+F24+F25),"")))) -> 505 | D27: Net à Payer | E27: =PRODUCT(D16,B27) -> 323200 | H27: Valeur Totale | I27: =IF(B27="","",B27) -> 505 | K27: Net à Payer | L27: =IF(E27="","",E27) -> 323200
A29: Caissier | F29: Client | H29: Caissier | M29: Client
A34: .
A39: BORDEREAU DE VENTE N° | C39: 2 | H39: BORDEREAU DE VENTE N° | J39: =C39 -> 2
A40: Agence: | B40: Lmumba | D40: Pointe-Noire le | F40: 2015-08-17 | H40: Agence: | I40: Lmumba | K40: Pointe-Noire le | M40: =F40 -> 2015-08-17
A42: INFORMATIONS DU CLIENT | H42: INFORMATIONS DU CLIENT
A43: NOM (S) : | D43: LUCIANO | H43: NOM (S) : | K43: =IF(D43="","",D43) -> LUCIANO
A44: PRENOM (S): | D44: OPORSCU | H44: PRENOM (S): | K44: =IF(D44="","",D44) -> OPORSCU
A45: ADRESSE et TELEPHONE: | D45: 05 514 19 98 | H45: ADRESSE et TELEPHONE: | K45: 05 514 19 98
A46: N° PASSEPORT: | H46: N° PASSEPORT:
A47: Destination des devises: | D47: ITALIE | H47: Destination des devises: | K47: =IF(D47="","",D47) -> ITALIE
A48: Motif: | D48: Professionnel | H48: Motif: | K48: =IF(D48="","",D48) -> Professionnel
A49: Devise: | D49: EURO | H49: Devise: | K49: EURO
A50: TAUX Moyen de VENTE | D50: 695 | H50: TAUX Moyen de VENTE | K50: =IF(D50="","",D50) -> 695
A53: BILLETAGE | H53: BILLETAGE
A54: Coupures | B54: Quantité | C54: Valeur | D54: Coupures | E54: Quantité | F54: Valeur | H54: Coupures | I54: Quantité | J54: Valeur | K54: Coupures | L54: Quantité | M54: Valeur
A55: 10000 | C55: =B55*A55 -> 0 | D55: 100 | E55: 2 | F55: =E55*D55 -> 200 | H55: 10000 | I55: =IF(B55="","",B55) ->  | J55: =IF(C55="","",C55) -> 0 | K55: 100 | L55: =IF(E55="","",E55) -> 2 | M55: =IF(F55="","",F55) -> 200
A56: 5000 | C56: =B56*A56 -> 0 | D56: 50 | F56: =E56*D56 -> 0 | H56: 5000 | I56: =IF(B56="","",B56) ->  | J56: =IF(C56="","",C56) -> 0 | K56: 50 | L56: =IF(E56="","",E56) ->  | M56: =IF(F56="","",F56) -> 0
A57: 2000 | C57: 0 | D57: 20 | E57: 4 | F57: 80 | H57: 2000 | J57: 0 | K57: 20 | L57: 4 | M57: 80
A58: 1000 | C58: 0 | D58: 10 | E58: 2 | F58: 20 | H58: 1000 | J58: 0 | K58: 10 | L58: 2 | M58: 20
A59: 500 | C59: 0 | D59: 5 | F59: 0 | H59: 500 | J59: 0 | K59: 5 | M59: 0
A60: 200 | B60: 2 | C60: 400 | D60: 1 | F60: 0 | H60: 200 | I60: 2 | J60: 400 | K60: 1 | M60: 0
A61: Valeur Totale | B61: =IF(D49="CFAO",(C55+C56+C57+C58+C59),IF(D49="DOLLARS",(F55+F56+F57+F58+F59+F60),IF(D49="EURO",(C59+C60+F55+F56+F57+F58+F59),IF(D49="LIVRE STERLING",(F56+F57+F58+F59),"")))) -> 700 | D61: Net à Payer | E61: =PRODUCT(D50,B61) -> 486500 | H61: Valeur Total | I61: =IF(B61="","",B61) -> 700 | K61: Net à Payer | L61: =IF(E61="","",E61) -> 486500
A63: Caissier | F63: Client | H63: Caissier | M63: Client
A68: .
A73: BORDEREAU DE VENTE N° | C73: 3 | H73: BORDEREAU DE VENTE N° | J73: =C73 -> 3
A74: Agence: | B74: Lmumba | D74: Pointe-Noire le | F74: 2015-08-17 | H74: Agence: | I74: Lmumba | K74: Pointe-Noire le | M74: =F74 -> 2015-08-17
A76: INFORMATIONS DU CLIENT | H76: INFORMATIONS DU CLIENT
A77: NOM (S) : | D77: FOUNDOUMOUNA | H77: NOM (S) : | K77: =IF(D77="","",D77) -> FOUNDOUMOUNA
A78: PRENOM (S): | D78: EXAUCE ELON | H78: PRENOM (S): | K78: =IF(D78="","",D78) -> EXAUCE ELON
A79: ADRESSE et TELEPHONE: | D79: 06 975 64 17 | H79: ADRESSE et TELEPHONE: | K79: 06 975 64 17
A80: N° PASSEPORT: | D80: OA0072462 | H80: N° PASSEPORT: | K80: OA0072462
A81: Destination des devises: | D81: MAROC | H81: Destination des devises: | K81: =IF(D81="","",D81) -> MAROC
A82: Motif: | D82: Etudes | H82: Motif: | K82: =IF(D82="","",D82) -> Etudes
A83: Devise: | D83: EURO | H83: Devise: | K83: EURO
A84: TAUX Moyen de VENTE | D84: 695 | H84: TAUX Moyen de VENTE | K84: =IF(D84="","",D84) -> 695
A87: BILLETAGE | H87: BILLETAGE
A88: Coupures | B88: Quantité | C88: Valeur | D88: Coupures | E88: Quantité | F88: Valeur | H88: Coupures | I88: Quantité | J88: Valeur | K88: Coupures | L88: Quantité | M88: Valeur
A89: 10000 | C89: =B89*A89 -> 0 | D89: 100 | E89: 2 | F89: =E89*D89 -> 200 | H89: 10000 | I89: =IF(B89="","",B89) ->  | J89: =IF(C89="","",C89) -> 0 | K89: 100 | L89: =IF(E89="","",E89) -> 2 | M89: =IF(F89="","",F89) -> 200
A90: 5000 | C90: =B90*A90 -> 0 | D90: 50 | E90: 30 | F90: =E90*D90 -> 1500 | H90: 5000 | I90: =IF(B90="","",B90) ->  | J90: =IF(C90="","",C90) -> 0 | K90: 50 | L90: =IF(E90="","",E90) -> 30 | M90: =IF(F90="","",F90) -> 1500
A91: 2000 | C91: 0 | D91: 20 | E91: 10 | F91: 200 | H91: 2000 | J91: 0 | K91: 20 | L91: 10 | M91: 200
A92: 1000 | C92: 0 | D92: 10 | F92: 0 | H92: 1000 | J92: 0 | K92: 10 | M92: 0
A93: 500 | C93: 0 | D93: 5 | E93: 2 | F93: 10 | H93: 500 | J93: 0 | K93: 5 | L93: 2 | M93: 10
A94: 200 | C94: 0 | D94: 1 | F94: 0 | H94: 200 | J94: 0 | K94: 1 | M94: 0
A95: Valeur Totale | B95: =IF(D83="CFAO",(C89+C90+C91+C92+C93),IF(D83="DOLLARS",(F89+F90+F91+F92+F93+F94),IF(D83="EURO",(C93+C94+F89+F90+F91+F92+F93),IF(D83="LIVRE STERLING",(F90+F91+F92+F93),"")))) -> 1910 | D95: Net à Payer | E95: =PRODUCT(D84,B95) -> 1327450 | H95: Valeur Total | I95: =IF(B95="","",B95) -> 1910 | K95: Net à Payer | L95: =IF(E95="","",E95) -> 1327450
A97: Caissier | F97: Client | H97: Caissier | M97: Client
A102: .
A107: BORDEREAU DE VENTE N° | C107: 4 | H107: BORDEREAU DE VENTE N° | J107: =C107 -> 4
A108: Agence: | B108: Lmumba | D108: Pointe-Noire le | F108: 2015-08-17 | H108: Agence: | I108: Lmumba | K108: Pointe-Noire le | M108: =F108 -> 2015-08-17
A110: INFORMATIONS DU CLIENT | H110: INFORMATIONS DU CLIENT
A111: NOM (S) : | D111: NKOUKABAKA | H111: NOM (S) : | K111: =IF(D111="","",D111) -> NKOUKABAKA
A112: PRENOM (S): | D112: GLADYS | H112: PRENOM (S): | K112: =IF(D112="","",D112) -> GLADYS
A113: ADRESSE et TELEPHONE: | D113: 05 530 96 20 | H113: ADRESSE et TELEPHONE: | K113: 05 530 96 20
A114: N° PASSEPORT: | H114: N° PASSEPORT:
A115: Destination des devises: | D115: FRANCE | H115: Destination des devises: | K115: =IF(D115="","",D115) -> FRANCE
A116: Motif: | D116: Tourisme | H116: Motif: | K116: =IF(D116="","",D116) -> Tourisme
A117: Devise: | D117: EURO | H117: Devise: | K117: EURO
A118: TAUX Moyen de VENTE | D118: 695 | H118: TAUX Moyen de VENTE | K118: =IF(D118="","",D118) -> 695
A121: BILLETAGE | H121: BILLETAGE
A122: Coupures | B122: Quantité | C122: Valeur | D122: Coupures | E122: Quantité | F122: Valeur | H122: Coupures | I122: Quantité | J122: Valeur | K122: Coupures | L122: Quantité | M122: Valeur
A123: 10000 | C123: =B123*A123 -> 0 | D123: 100 | E123: 1 | F123: =E123*D123 -> 100 | H123: 10000 | I123: =IF(B123="","",B123) ->  | J123: =IF(C123="","",C123) -> 0 | K123: 100 | L123: =IF(E123="","",E123) -> 1 | M123: =IF(F123="","",F123) -> 100
A124: 5000 | C124: =B124*A124 -> 0 | D124: 50 | F124: =E124*D124 -> 0 | H124: 5000 | I124: =IF(B124="","",B124) ->  | J124: =IF(C124="","",C124) -> 0 | K124: 50 | L124: =IF(E124="","",E124) ->  | M124: =IF(F124="","",F124) -> 0
A125: 2000 | C125: 0 | D125: 20 | E125: 2 | F125: 40 | H125: 2000 | J125: 0 | K125: 20 | L125: 2 | M125: 40
A126: 1000 | C126: 0 | D126: 10 | F126: 0 | H126: 1000 | J126: 0 | K126: 10 | M126: 0
A127: 500 | C127: 0 | D127: 5 | F127: 0 | H127: 500 | J127: 0 | K127: 5 | M127: 0
A128: 200 | C128: 0 | D128: 1 | F128: 0 | H128: 200 | J128: 0 | K128: 1 | M128: 0
A129: Valeur Totale | B129: =IF(D117="CFAO",(C123+C124+C125+C126+C127),IF(D117="DOLLARS",(F123+F124+F125+F126+F127+F128),IF(D117="EURO",(C127+C128+F123+F124+F125+F126+F127),IF(D117="LIVRE STERLING",(F124+F125+F126+F127),"")))) -> 140 | D129: Net à Payer | E129: =PRODUCT(D118,B129) -> 97300 | H129: Valeur Total | I129: =IF(B129="","",B129) -> 140 | K129: Net à Payer | L129: =IF(E129="","",E129) -> 97300
A131: Caissier | F131: Client | H131: Caissier | M131: Client
A136: .
A141: BORDEREAU DE VENTE N° | C141: 5 | H141: BORDEREAU DE VENTE N° | J141: =C141 -> 5
A142: Agence: | B142: Lmumba | D142: Pointe-Noire le | F142: 2015-08-17 | H142: Agence: | I142: Lmumba | K142: Pointe-Noire le | M142: =F142 -> 2015-08-17
A144: INFORMATIONS DU CLIENT | H144: INFORMATIONS DU CLIENT
A145: NOM (S) : | D145: MAKOUMBOU | H145: NOM (S) : | K145: =IF(D145="","",D145) -> MAKOUMBOU
A146: PRENOM (S): | D146: FULGENCE I | H146: PRENOM (S): | K146: =IF(D146="","",D146) -> FULGENCE I
A147: ADRESSE et TELEPHONE: | D147: 06 649 56 98 | H147: ADRESSE et TELEPHONE: | K147: 06 649 56 98
A148: N° PASSEPORT: | H148: N° PASSEPORT:
A149: Destination des devises: | D149: FRANCE | H149: Destination des devises: | K149: =IF(D149="","",D149) -> FRANCE
A150: Motif: | D150: Tourisme | H150: Motif: | K150: =IF(D150="","",D150) -> Tourisme
A151: Devise: | D151: EURO | H151: Devise: | K151: EURO
A152: TAUX Moyen de VENTE | D152: 695 | H152: TAUX Moyen de VENTE | K152: =IF(D152="","",D152) -> 695
A155: BILLETAGE | H155: BILLETAGE
A156: Coupures | B156: Quantité | C156: Valeur | D156: Coupures | E156: Quantité | F156: Valeur | H156: Coupures | I156: Quantité | J156: Valeur | K156: Coupures | L156: Quantité | M156: Valeur
A157: 10000 | C157: =B157*A157 -> 0 | D157: 100 | E157: 1 | F157: =E157*D157 -> 100 | H157: 10000 | I157: =IF(B157="","",B157) ->  | J157: =IF(C157="","",C157) -> 0 | K157: 100 | L157: =IF(E157="","",E157) -> 1 | M157: =IF(F157="","",F157) -> 100
A158: 5000 | C158: =B158*A158 -> 0 | D158: 50 | E158: 1 | F158: =E158*D158 -> 50 | H158: 5000 | I158: =IF(B158="","",B158) ->  | J158: =IF(C158="","",C158) -> 0 | K158: 50 | L158: =IF(E158="","",E158) -> 1 | M158: =IF(F158="","",F158) -> 50
A159: 2000 | C159: 0 | D159: 20 | E159: 1 | F159: 20 | H159: 2000 | J159: 0 | K159: 20 | L159: 1 | M159: 20
A160: 1000 | C160: 0 | D160: 10 | E160: 1 | F160: 10 | H160: 1000 | J160: 0 | K160: 10 | L160: 1 | M160: 10
A161: 500 | C161: 0 | D161: 5 | E161: 1 | F161: 5 | H161: 500 | J161: 0 | K161: 5 | L161: 1 | M161: 5
A162: 200 | C162: 0 | D162: 1 | F162: 0 | H162: 200 | J162: 0 | K162: 1 | M162: 0
A163: Valeur Totale | B163: =IF(D151="CFAO",(C157+C158+C159+C160+C161),IF(D151="DOLLARS",(F157+F158+F159+F160+F161+F162),IF(D151="EURO",(C161+C162+F157+F158+F159+F160+F161),IF(D151="LIVRE STERLING",(F158+F159+F160+F161),"")))) -> 185 | D163: Net à Payer | E163: =PRODUCT(D152,B163) -> 128575 | H163: Valeur Total | I163: =IF(B163="","",B163) -> 185 | K163: Net à Payer | L163: =IF(E163="","",E163) -> 128575
A165: Caissier | F165: Client | H165: Caissier | M165: Client
A170: .
A175: BORDEREAU DE VENTE N° | C175: 6 | H175: BORDEREAU DE VENTE N° | J175: =C175 -> 6
A176: Agence: | B176: Lmumba | D176: Pointe-Noire le | F176: 2015-08-17 | H176: Agence: | I176: Lmumba | K176: Pointe-Noire le | M176: =F176 -> 2015-08-17
A178: INFORMATIONS DU CLIENT | H178: INFORMATIONS DU CLIENT
A179: NOM (S) : | D179: KONDE MUAKE | H179: NOM (S) : | K179: =IF(D179="","",D179) -> KONDE MUAKE
A180: PRENOM (S): | D180: PIERRE | H180: PRENOM (S): | K180: =IF(D180="","",D180) -> PIERRE
A181: ADRESSE et TELEPHONE: | D181: 05 559 63 31 | H181: ADRESSE et TELEPHONE: | K181: 05 559 63 31
A182: N° PASSEPORT: | D182: OB0112091 | H182: N° PASSEPORT: | K182: OB0112091
A183: Destination des devises: | D183: BELGIQUE | H183: Destination des devises: | K183: =IF(D183="","",D183) -> BELGIQUE
A184: Motif: | D184: Professionnel | H184: Motif: | K184: =IF(D184="","",D184) -> Professionnel
A185: Devise: | D185: EURO | H185: Devise: | K185: EURO
A186: TAUX Moyen de VENTE | D186: 695 | H186: TAUX Moyen de VENTE | K186: =IF(D186="","",D186) -> 695
A189: BILLETAGE | H189: BILLETAGE
A190: Coupures | B190: Quantité | C190: Valeur | D190: Coupures | E190: Quantité | F190: Valeur | H190: Coupures | I190: Quantité | J190: Valeur | K190: Coupures | L190: Quantité | M190: Valeur
A191: 10000 | C191: =B191*A191 -> 0 | D191: 100 | E191: 2 | F191: =E191*D191 -> 200 | H191: 10000 | I191: =IF(B191="","",B191) ->  | J191: =IF(C191="","",C191) -> 0 | K191: 100 | L191: =IF(E191="","",E191) -> 2 | M191: =IF(F191="","",F191) -> 200
A192: 5000 | C192: =B192*A192 -> 0 | D192: 50 | E192: 2 | F192: =E192*D192 -> 100 | H192: 5000 | I192: =IF(B192="","",B192) ->  | J192: =IF(C192="","",C192) -> 0 | K192: 50 | L192: =IF(E192="","",E192) -> 2 | M192: =IF(F192="","",F192) -> 100
A193: 2000 | C193: 0 | D193: 20 | F193: 0 | H193: 2000 | J193: 0 | K193: 20 | M193: 0
A194: 1000 | C194: 0 | D194: 10 | F194: 0 | H194: 1000 | J194: 0 | K194: 10 | M194: 0
A195: 500 | C195: 0 | D195: 5 | F195: 0 | H195: 500 | J195: 0 | K195: 5 | M195: 0
A196: 200 | B196: 13 | C196: 2600 | D196: 1 | F196: 0 | H196: 200 | I196: 13 | J196: 2600 | K196: 1 | M196: 0
A197: Valeur Totale | B197: =IF(D185="CFAO",(C191+C192+C193+C194+C195),IF(D185="DOLLARS",(F191+F192+F193+F194+F195+F196),IF(D185="EURO",(C195+C196+F191+F192+F193+F194+F195),IF(D185="LIVRE STERLING",(F192+F193+F194+F195),"")))) -> 2900 | D197: Net à Payer | E197: =PRODUCT(D186,B197) -> 2015500 | H197: Valeur Total | I197: =IF(B197="","",B197) -> 2900 | K197: Net à Payer | L197: =IF(E197="","",E197) -> 2015500
A199: Caissier | F199: Client | H199: Caissier | M199: Client
A204: .
A209: BORDEREAU DE VENTE N° | C209: 7 | H209: BORDEREAU DE VENTE N° | J209: =C209 -> 7
A210: Agence: | B210: Lmumba | D210: Pointe-Noire le | F210: 2015-08-17 | H210: Agence: | I210: Lmumba | K210: Pointe-Noire le | M210: =F210 -> 2015-08-17
A212: INFORMATIONS DU CLIENT | H212: INFORMATIONS DU CLIENT
A213: NOM (S) : | D213: MBOUNGOU | H213: NOM (S) : | K213: =IF(D213="","",D213) -> MBOUNGOU
A214: PRENOM (S): | D214: YACINTHE | H214: PRENOM (S): | K214: =IF(D214="","",D214) -> YACINTHE
A215: ADRESSE et TELEPHONE: | H215: ADRESSE et TELEPHONE:
A216: N° PASSEPORT: | H216: N° PASSEPORT:
A217: Destination des devises: | D217: FRANCE | H217: Destination des devises: | K217: =IF(D217="","",D217) -> FRANCE
A218: Motif: | D218: Tourisme | H218: Motif: | K218: =IF(D218="","",D218) -> Tourisme
A219: Devise: | D219: EURO | H219: Devise: | K219: EURO
A220: TAUX Moyen de VENTE | D220: 695 | H220: TAUX Moyen de VENTE | K220: =IF(D220="","",D220) -> 695
A223: BILLETAGE | H223: BILLETAGE
A224: Coupures | B224: Quantité | C224: Valeur | D224: Coupures | E224: Quantité | F224: Valeur | H224: Coupures | I224: Quantité | J224: Valeur | K224: Coupures | L224: Quantité | M224: Valeur
A225: 10000 | C225: =B225*A225 -> 0 | D225: 100 | F225: =E225*D225 -> 0 | H225: 10000 | I225: =IF(B225="","",B225) ->  | J225: =IF(C225="","",C225) -> 0 | K225: 100 | L225: =IF(E225="","",E225) ->  | M225: =IF(F225="","",F225) -> 0
A226: 5000 | C226: =B226*A226 -> 0 | D226: 50 | F226: =E226*D226 -> 0 | H226: 5000 | I226: =IF(B226="","",B226) ->  | J226: =IF(C226="","",C226) -> 0 | K226: 50 | L226: =IF(E226="","",E226) ->  | M226: =IF(F226="","",F226) -> 0
A227: 2000 | C227: 0 | D227: 20 | E227: 1 | F227: 20 | H227: 2000 | J227: 0 | K227: 20 | L227: 1 | M227: 20
A228: 1000 | C228: 0 | D228: 10 | E228: 1 | F228: 10 | H228: 1000 | J228: 0 | K228: 10 | L228: 1 | M228: 10
A229: 500 | C229: 0 | D229: 5 | F229: 0 | H229: 500 | J229: 0 | K229: 5 | M229: 0
A230: 200 | C230: 0 | D230: 1 | F230: 0 | H230: 200 | J230: 0 | K230: 1 | M230: 0
A231: Valeur Totale | B231: =IF(D219="CFAO",(C225+C226+C227+C228+C229),IF(D219="DOLLARS",(F225+F226+F227+F228+F229+F230),IF(D219="EURO",(C229+C230+F225+F226+F227+F228+F229),IF(D219="LIVRE STERLING",(F226+F227+F228+F229),"")))) -> 30 | D231: Net à Payer | E231: =PRODUCT(D220,B231) -> 20850 | H231: Valeur Total | I231: =IF(B231="","",B231) -> 30 | K231: Net à Payer | L231: =IF(E231="","",E231) -> 20850
A233: Caissier | F233: Client | H233: Caissier | M233: Client
A238: .
A243: BORDEREAU DE VENTE N° | C243: 8 | H243: BORDEREAU DE VENTE N° | J243: =C243 -> 8
A244: Agence: | B244: Lmumba | D244: Pointe-Noire le | F244: 2015-08-17 | H244: Agence: | I244: Lmumba | K244: Pointe-Noire le | M244: =F244 -> 2015-08-17
A246: INFORMATIONS DU CLIENT | H246: INFORMATIONS DU CLIENT
A247: NOM (S) : | D247: GOMA | H247: NOM (S) : | K247: =IF(D247="","",D247) -> GOMA
A248: PRENOM (S): | D248: SAHARA | H248: PRENOM (S): | K248: =IF(D248="","",D248) -> SAHARA
A249: ADRESSE et TELEPHONE: | D249: CENTRE VILLE | H249: ADRESSE et TELEPHONE: | K249: CENTRE VILLE
A250: N° PASSEPORT: | D250: OA0021896 | H250: N° PASSEPORT: | K250: OA0021896
A251: Destination des devises: | D251: FRANCE | H251: Destination des devises: | K251: =IF(D251="","",D251) -> FRANCE
A252: Motif: | D252: Tourisme | H252: Motif: | K252: =IF(D252="","",D252) -> Tourisme
A253: Devise: | D253: EURO | H253: Devise: | K253: EURO
A254: TAUX Moyen de VENTE | D254: 673 | H254: TAUX Moyen de VENTE | K254: =IF(D254="","",D254) -> 673
A257: BILLETAGE | H257: BILLETAGE
A258: Coupures | B258: Quantité | C258: Valeur | D258: Coupures | E258: Quantité | F258: Valeur | H258: Coupures | I258: Quantité | J258: Valeur | K258: Coupures | L258: Quantité | M258: Valeur
A259: 10000 | C259: =B259*A259 -> 0 | D259: 100 | F259: =E259*D259 -> 0 | H259: 10000 | I259: =IF(B259="","",B259) ->  | J259: =IF(C259="","",C259) -> 0 | K259: 100 | L259: =IF(E259="","",E259) ->  | M259: =IF(F259="","",F259) -> 0
A260: 5000 | C260: =B260*A260 -> 0 | D260: 50 | E260: 20 | F260: =E260*D260 -> 1000 | H260: 5000 | I260: =IF(B260="","",B260) ->  | J260: =IF(C260="","",C260) -> 0 | K260: 50 | L260: =IF(E260="","",E260) -> 20 | M260: =IF(F260="","",F260) -> 1000
A261: 2000 | C261: 0 | D261: 20 | F261: 0 | H261: 2000 | J261: 0 | K261: 20 | M261: 0
A262: 1000 | C262: 0 | D262: 10 | F262: 0 | H262: 1000 | J262: 0 | K262: 10 | M262: 0
A263: 500 | C263: 0 | D263: 5 | F263: 0 | H263: 500 | J263: 0 | K263: 5 | M263: 0
A264: 200 | C264: 0 | D264: 1 | F264: 0 | H264: 200 | J264: 0 | K264: 1 | M264: 0
A265: Valeur Totale | B265: =IF(D253="CFAO",(C259+C260+C261+C262+C263),IF(D253="DOLLARS",(F259+F260+F261+F262+F263+F264),IF(D253="EURO",(C263+C264+F259+F260+F261+F262+F263),IF(D253="LIVRE STERLING",(F260+F261+F262+F263),"")))) -> 1000 | D265: Net à Payer | E265: =PRODUCT(D254,B265) -> 673000 | H265: Valeur Total | I265: =IF(B265="","",B265) -> 1000 | K265: Net à Payer | L265: =IF(E265="","",E265) -> 673000
A267: Caissier | F267: Client | H267: Caissier | M267: Client
A272: .
A277: BORDEREAU DE VENTE N° | C277: 9 | H277: BORDEREAU DE VENTE N° | J277: =C277 -> 9
A278: Agence: | B278: Lmumba | D278: Pointe-Noire le | F278: 2015-08-17 | H278: Agence: | I278: Lmumba | K278: Pointe-Noire le | M278: =F278 -> 2015-08-17
A280: INFORMATIONS DU CLIENT | H280: INFORMATIONS DU CLIENT
A281: NOM (S) : | D281: ETOU | H281: NOM (S) : | K281: =IF(D281="","",D281) -> ETOU
A282: PRENOM (S): | D282: MALAINE B | H282: PRENOM (S): | K282: =IF(D282="","",D282) -> MALAINE B
A283: ADRESSE et TELEPHONE: | D283: 06 675 39 37 | H283: ADRESSE et TELEPHONE: | K283: 06 675 39 37
A284: N° PASSEPORT: | D284: OA01298461 | H284: N° PASSEPORT: | K284: OA01298461
A285: Destination des devises: | D285: CHINE | H285: Destination des devises: | K285: =IF(D285="","",D285) -> CHINE
A286: Motif: | D286: Affaire | H286: Motif: | K286: =IF(D286="","",D286) -> Affaire
A287: Devise: | D287: EURO | H287: Devise: | K287: EURO
A288: TAUX Moyen de VENTE | D288: 695 | H288: TAUX Moyen de VENTE | K288: =IF(D288="","",D288) -> 695
A291: BILLETAGE | H291: BILLETAGE
A292: Coupures | B292: Quantité | C292: Valeur | D292: Coupures | E292: Quantité | F292: Valeur | H292: Coupures | I292: Quantité | J292: Valeur | K292: Coupures | L292: Quantité | M292: Valeur
A293: 10000 | C293: =B293*A293 -> 0 | D293: 100 | E293: 6 | F293: =E293*D293 -> 600 | H293: 10000 | I293: =IF(B293="","",B293) ->  | J293: =IF(C293="","",C293) -> 0 | K293: 100 | L293: =IF(E293="","",E293) -> 6 | M293: =IF(F293="","",F293) -> 600
A294: 5000 | C294: =B294*A294 -> 0 | D294: 50 | E294: 1 | F294: =E294*D294 -> 50 | H294: 5000 | I294: =IF(B294="","",B294) ->  | J294: =IF(C294="","",C294) -> 0 | K294: 50 | L294: =IF(E294="","",E294) -> 1 | M294: =IF(F294="","",F294) -> 50
A295: 2000 | C295: 0 | D295: 20 | F295: 0 | H295: 2000 | J295: 0 | K295: 20 | M295: 0
A296: 1000 | C296: 0 | D296: 10 | F296: 0 | H296: 1000 | J296: 0 | K296: 10 | M296: 0
A297: 500 | C297: 0 | D297: 5 | F297: 0 | H297: 500 | J297: 0 | K297: 5 | M297: 0
A298: 200 | C298: 0 | D298: 1 | F298: 0 | H298: 200 | J298: 0 | K298: 1 | M298: 0
A299: Valeur Totale | B299: =IF(D287="CFAO",(C293+C294+C295+C296+C297),IF(D287="DOLLARS",(F293+F294+F295+F296+F297+F298),IF(D287="EURO",(C297+C298+F293+F294+F295+F296+F297),IF(D287="LIVRE STERLING",(F294+F295+F296+F297),"")))) -> 650 | D299: Net à Payer | E299: =PRODUCT(D288,B299) -> 451750 | H299: Valeur Total | I299: =IF(B299="","",B299) -> 650 | K299: Net à Payer | L299: =IF(E299="","",E299) -> 451750
A301: Caissier | F301: Client | H301: Caissier | M301: Client
A306: .
A311: BORDEREAU DE VENTE N° | C311: 10 | H311: BORDEREAU DE VENTE N° | J311: =C311 -> 10
A312: Agence: | B312: Lmumba | D312: Pointe-Noire le | F312: 2015-08-17 | H312: Agence: | I312: Lmumba | K312: Pointe-Noire le | M312: =F312 -> 2015-08-17
... 20 more rows

Sheet STATISTIQUE
J1: =TODAY()-1 -> 2015-08-17
D4: STATISTIQUE DES OPERATIONS DE CHANGE
H6: Pointe-Noire, le | I6: 2015-08-17
A7: Agence | B7: Lumumba
A10: DEVISE | B10: OUVERTURE | C10: APPRO | D10: VALEUR ACHAT | E10: Montant ACHAT | F10: VALEUR VENTE | G10: Montant VENTE | H10: RAPATRIE | I10: CLOTURE
A11: CFAO | B11: 2000 | D11: =SUMPRODUCT((ACHAT!$M$1:$M$100000=$J$1)*(ACHAT!$D$10:$D$100009=$A11)*IF(ISNUMBER(ACHAT!$B$22:$B$100021),ACHAT!$B$22:$B$100021,0)) -> 100000 | E11: =SUMPRODUCT((ACHAT!$M$1:$M$100000=$J$1)*(ACHAT!$D$10:$D$100009=$A11)*IF(ISNUMBER(ACHAT!$E$22:$E$100021),ACHAT!$E$22:$E$100021,0)) -> 100000 | F11: =SUMPRODUCT((VENTE!$M$1:$M$100000=$J$1)*(VENTE!$D$10:$D$100009=$A11)*IF(ISNUMBER(VENTE!$B$22:$B$100021),VENTE!$B$22:$B$100021,0)) -> 0 | G11: =SUMPRODUCT((VENTE!$M$1:$M$100000=$J$1)*(VENTE!$D$10:$D$100009=$A11)*IF(ISNUMBER(VENTE!$E$22:$E$100021),VENTE!$E$22:$E$100021,0)) -> 0 | I11: =(B11+C11+D11)-(F11+H11) -> 102000
A12: DOLLARS | B12: 918 | D12: =SUMPRODUCT((ACHAT!$M$1:$M$100000=$J$1)*(ACHAT!$D$10:$D$100009=$A12)*IF(ISNUMBER(ACHAT!$B$22:$B$100021),ACHAT!$B$22:$B$100021,0)) -> 60 | E12: =SUMPRODUCT((ACHAT!$M$1:$M$100000=$J$1)*(ACHAT!$D$10:$D$100009=$A12)*IF(ISNUMBER(ACHAT!$E$22:$E$100021),ACHAT!$E$22:$E$100021,0)) -> 35000 | F12: =SUMPRODUCT((VENTE!$M$1:$M$100000=$J$1)*(VENTE!$D$10:$D$100009=$A12)*IF(ISNUMBER(VENTE!$B$22:$B$100021),VENTE!$B$22:$B$100021,0)) -> 505 | G12: =SUMPRODUCT((VENTE!$M$1:$M$100000=$J$1)*(VENTE!$D$10:$D$100009=$A12)*IF(ISNUMBER(VENTE!$E$22:$E$100021),VENTE!$E$22:$E$100021,0)) -> 323200 | I12: =(B12+C12+D12)-(F12+H12) -> 473
A13: EURO | B13: 7050 | D13: =SUMPRODUCT((ACHAT!$M$1:$M$100000=$J$1)*(ACHAT!$D$10:$D$100009=$A13)*IF(ISNUMBER(ACHAT!$B$22:$B$100021),ACHAT!$B$22:$B$100021,0)) -> 1910 | E13: =SUMPRODUCT((ACHAT!$M$1:$M$100000=$J$1)*(ACHAT!$D$10:$D$100009=$A13)*IF(ISNUMBER(ACHAT!$E$22:$E$100021),ACHAT!$E$22:$E$100021,0)) -> 1252300 | F13: =SUMPRODUCT((VENTE!$M$1:$M$100000=$J$1)*(VENTE!$D$10:$D$100009=$A13)*IF(ISNUMBER(VENTE!$B$22:$B$100021),VENTE!$B$22:$B$100021,0)) -> 7540 | G13: =SUMPRODUCT((VENTE!$M$1:$M$100000=$J$1)*(VENTE!$D$10:$D$100009=$A13)*IF(ISNUMBER(VENTE!$E$22:$E$100021),VENTE!$E$22:$E$100021,0)) -> 5218300 | I13: 1420
A14: Livre Sterling | B14: 30 | D14: =SUMPRODUCT((ACHAT!$M$1:$M$100000=$J$1)*(ACHAT!$D$10:$D$100009=$A14)*IF(ISNUMBER(ACHAT!$B$22:$B$100021),ACHAT!$B$22:$B$100021,0)) -> 90 | E14: =SUMPRODUCT((ACHAT!$M$1:$M$100000=$J$1)*(ACHAT!$D$10:$D$100009=$A14)*IF(ISNUMBER(ACHAT!$E$22:$E$100021),ACHAT!$E$22:$E$100021,0)) -> 54000 | F14: =SUMPRODUCT((VENTE!$M$1:$M$100000=$J$1)*(VENTE!$D$10:$D$100009=$A14)*IF(ISNUMBER(VENTE!$B$22:$B$100021),VENTE!$B$22:$B$100021,0)) -> 0 | G14: =SUMPRODUCT((VENTE!$M$1:$M$100000=$J$1)*(VENTE!$D$10:$D$100009=$A14)*IF(ISNUMBER(VENTE!$E$22:$E$100021),VENTE!$E$22:$E$100021,0)) -> 0 | I14: 120
A15: XAF | B15: 3172870 | C15: 107500 | D15: =E14+E13+E12+E11 -> 1441300 | F15: =G14+G13+G12+G11 -> 5541500 | H15: 2325000 | I15: =(B15+C15+F15)-(D15+H15) -> 5055570
B17: Chef d'agence | H17: Caissier
A23: MOTIFS DE RAPATRIEMENT | F23: PROVENANCE DE L'APPROVISIONNEMENT
A24: _ | F24: _
A25: _ | F25: _
A26: _ | F26: _
A27: _ | F27: _
A28: _ | F28: _
A29: _ | F29: _
A30: _ | F30: _
A33: .

Sheet Feuil2
A1: AFGHANISTAN
A2: AFRIQUE DU SUD
A3: ALBANIE
A4: ABOU DHABI
A5: ALGÉRIE
A6: ALLEMAGNE
A7: ANGLETERRE
A8: ANGOLA
A9: ARABIE SAOUDITE
A10: ARGENTINE
A11: ARMÉNIE
A12: AUSTRALIE
A13: BANGLADESH
A14: BELGIQUE
A15: BÉNIN
A16: BOLIVIE
A17: BOSNIE-HERZÉGOVINE
A18: BOTSWANA
A19: BRÉSIL
A20: BULGARIE
A21: BURKINA FASO
A22: BURUNDI
A23: CAMBODGE
A24: CAMEROUN
A25: CANADA
A26: CAP-VERT
A27: CENTRAFRIQUE
A28: CHILI
A29: CHINE
A30: CHYPRE
A31: COLOMBIE
A32: COMORES
A33: CONGO,RD
A34: CORÉE, RÉPUBLIQUE DE
A35: CORÉE DU NORD
A36: COSTA RICA
A37: CÔTE D’IVOIRE
A38: CROATIE
A39: CUBA
A40: DANEMARK
A41: DJIBOUTI
A42: DOMINIQUE
A43: DUBAÏ
A44: ECOSSE
A45: ÉGYPTE
A46: ÉQUATEUR
A47: ÉRYTHRÉE
A48: ESPAGNE
A49: ÉTATS-UNIS
A50: ÉTHIOPIE
A51: FINLANDE
A52: FRANCE
A53: GABON
A54: GAMBIE
A55: GHANA
A56: GRÈCE
A57: GRENADE
A58: GUADELOUPE
A59: GUATEMALA
A60: GUINÉEGUINÉE-BISSAU
A61: GUINÉE ÉQUATORIALE
A62: GUYANA
A63: HAÏTI
A64: HONDURAS
A65: HONG KONG
A66: HONGRIE
A67: INDE
A68: INDONÉSIE
A69: IRAN
A70: IRAQ
A71: IRLANDE
A72: IRLANDE DU NORD
A73: ISLANDE
A74: ISRAËL
A75: ITALIE
A76: JAMAÏQUE
A77: JAPON
A78: KAZAKHSTAN
A79: KENYA
A80: KOWEÏT
A81: LESOTHO
A82: LIBAN
A83: LIBÉRIA
A84: LIBYE
A85: LITUANIE
A86: LUXEMBOURG
A87: MACÉDOINE
A88: MADAGASCAR
A89: MALAISIE
A90: MALAWI
A91: MALI
A92: MALTE
A93: MAROC
A94: MARTINIQUE
A95: MAURICE
A96: MAURITANIE
A97: MAYOTTE
A98: MEXIQUE
A99: MONACO
A100: MONGOLIE
A101: MONTÉNÉGRO
A102: MOZAMBIQUE
A103: NAMIBIE
A104: NÉPAL
A105: NICARAGUA
A106: NIGER
A107: NIGÉRIA
A108: NORVÈGE
A109: NOUVELLE-CALÉDONIE
A110: NOUVELLE-ZÉLANDE
A111: OUGANDA
A112: PAKISTAN
A113: PARAGUAY
A114: PAYS-BAS
A115: PAYS DE GALLES
A116: PÉROU
A117: PHILIPPINES
A118: POLOGNE
A119: PORTO RICO
A120: PORTUGAL
A121: QATAR
A122: RÉUNION
A123: ROUMANIE
A124: RUSSIE, FÉDÉRATION DE
A125: RWANDA
A126: SAO TOMÉ-ET-PRINCIPE
A127: SÉNÉGAL
A128: SERBIE
A129: SEYCHELLES
A130: SIERRA LEONE
A131: SINGAPOUR
A132: SLOVÉNIE
A133: SOMALIE
A134: SOUDAN
A135: SOUDAN DU SUD
A136: SUÈDE
A137: SUISSE
A138: SWAZILAND
A139: SYRIE
A140: TADJIKISTAN
A141: TAÏWAN
A142: TANZANIE, DAR ES SALAM
A143: TCHAD
A144: TCHÈQUE, RÉPUBLIQUE
A145: THAÏLANDE
A146: TOGO
A147: TUNISIE
A148: TURQUIE
A149: UKRAINE
A150: URUGUAY
A151: VENEZUELA
A152: VIET NAM
A153: ZAMBIE
A154: ZIMBABWE
